bitfinex/quotes_SOLUSD_20241111
["timestamp","ask_amount","ask_price","bid_price","bid_amount"]
[1731367386117,34.61349684,223.38,223.32,0.1]
[1731367386336,34.61349684,223.36,223.28,0.13421171]
[1731367386520,34.61349684,223.36,223.29,0.1]
[1731367386726,34.61349684,223.36,223.31,0.1]
[1731367386930,34.61349684,223.38,223.31,0.1]
[1731367387137,34.61349684,223.38,223.33,0.1]
[1731367387338,1.0,223.42,223.37,0.1]
[1731367387635,1.0,223.42,223.41,0.1]
[1731367388016,1.0,223.42,223.41,34.71349684]
[1731367388222,1.0,223.42,223.41,58.49038084]
[1731367388430,1.0,223.42,223.41,99.05384951]
[1731367388627,0.63882353,223.53,223.52,0.1]
[1731367388816,0.63882353,223.53,223.52,34.71349684]
[1731367389221,0.63882353,223.53,223.52,0.1]
[1731367389527,0.63882353,223.53,223.52,58.49038084]
[1731367390128,0.63882353,223.53,223.52,0.1]
[1731367390327,0.63882353,223.53,223.49,34.71349684]
[1731367390530,34.61349684,223.5,223.45,0.1]
[1731367390741,34.61349684,223.52,223.46,0.1]
[1731367391037,34.61349684,223.5,223.42,0.1]
[1731367391240,34.61349684,223.52,223.45,0.1]
[1731367391446,34.61349684,223.5,223.45,0.1]
[1731367391628,34.61349684,223.52,223.48,0.1]
[1731367392030,0.63882353,223.53,223.48,0.1]
[1731367392332,0.63882353,223.53,223.5,0.1]
[1731367393544,0.63882353,223.53,223.52,0.1]
[1731367394038,0.63882353,223.53,223.45,0.1]
[1731367394242,0.63882353,223.53,223.51,0.1]
[1731367394942,16.3719,223.74,223.57,0.1]
[1731367395244,34.61349684,223.7,223.63,0.1]
[1731367395547,34.61349684,223.7,223.55,6.1099]
[1731367395548,34.61349684,223.64,223.58,0.1]
[1731367395740,34.61349684,223.62,223.58,0.1]
[1731367395931,34.61349684,223.62,223.53,34.61349684]
[1731367395932,34.61349684,223.62,223.55,0.1]
[1731367396245,34.61349684,223.58,223.54,0.1]
[1731367396450,34.61349684,223.6,223.54,0.1]
[1731367396652,34.61349684,223.57,223.56,0.1]
[1731367397149,34.61349684,223.57,223.55,0.1]
[1731367397652,34.61349684,223.57,223.51,0.1]
[1731367397826,34.61349684,223.54,223.53,0.1]
[1731367398646,34.61349684,223.54,223.51,0.1]
[1731367398847,34.61349684,223.54,223.39,0.1]
[1731367398848,69.22699368,223.52,223.39,0.1]
[1731367399033,34.61349684,223.43,223.39,0.1]
[1731367399349,34.61349684,223.4,223.39,0.1]
[1731367399649,34.61349684,223.43,223.39,0.1]
[1731367399843,34.61349684,223.43,223.41,0.1]
[1731367400031,34.61349684,223.45,223.44,0.1]
[1731367400240,23.776884,223.62,223.44,0.1]
[1731367400241,34.61349684,223.47,223.44,0.1]
[1731367400438,34.61349684,223.47,223.39,0.1]
[1731367400652,34.61349684,223.52,223.4,0.1]
[1731367400653,34.61349684,223.43,223.4,0.1]
[1731367401024,34.61349684,223.41,223.34,0.1]
[1731367401229,34.61349684,223.35,223.3,0.1]
[1731367401730,34.61349684,223.41,223.23,0.1]
[1731367401731,34.61349684,223.33,223.28,0.1]
[1731367401930,34.61349684,223.31,223.28,0.1]
[1731367402125,34.61349684,223.29,223.23,0.1]
[1731367402327,34.61349684,223.41,223.21,0.1]
[1731367402328,34.61349684,223.25,223.21,0.1]
[1731367402538,34.61349684,223.25,223.19,0.1]
[1731367402736,34.61349684,223.29,223.23,0.1]
[1731367402941,34.61349684,223.25,223.19,0.1]
[1731367403144,34.61349684,223.27,223.19,0.1]
[1731367403344,34.61349684,223.23,223.17,0.1]
[1731367403650,34.61349684,223.25,223.21,0.1]
[1731367403852,34.61349684,223.27,223.19,0.1]
[1731367404036,34.61349684,223.27,223.23,0.1]
[1731367404233,34.61349684,223.25,223.2,6.17434633]
[1731367404439,34.61349684,223.21,223.15,0.1]
[1731367404845,34.61349684,223.21,223.12,34.61349684]
[1731367404846,34.61349684,223.21,223.18,0.1]
[1731367405026,34.61349684,223.21,223.16,0.1]
[1731367405350,34.61349684,223.23,223.2,0.1]
[1731367405539,34.61349684,223.23,223.18,0.1]
[1731367405731,34.61349684,223.23,223.14,34.61349684]
[1731367405732,34.61349684,223.23,223.19,0.1]
[1731367405927,34.61349684,223.29,223.22,0.1]
[1731367406136,34.61349684,223.25,223.2,0.1]
[1731367406345,34.61349684,223.27,223.22,0.1]
[1731367406872,4.4728,223.57,223.38,0.1]
[1731367407033,34.61349684,223.49,223.44,0.1]
[1731367407349,34.61349684,223.47,223.45,0.1]
[1731367408129,34.61349684,223.49,223.45,0.1]
[1731367409430,0.1,223.57,223.37,6.54373759]
[1731367409431,34.61349684,223.47,223.43,0.1]
[1731367409936,34.61349684,223.47,223.37,6.54373759]
[1731367409937,34.61349684,223.45,223.37,0.1]
[1731367410251,34.61349684,223.42,223.38,0.1]
[1731367410452,0.1,223.81,223.62,0.1]
[1731367410637,34.61349684,223.69,223.64,0.1]
[1731367410841,34.61349684,223.67,223.64,0.1]
[1731367411039,34.61349684,223.69,223.64,0.1]
[1731367411243,34.61349684,223.65,223.57,0.1]
[1731367411451,34.61349684,223.65,223.58,0.1]
[1731367411947,34.61349684,223.65,223.6,0.1]
[1731367412164,34.61349684,223.63,223.58,0.1]
[1731367412736,34.61349684,223.65,223.6,0.1]
[1731367412931,34.61349684,223.65,223.58,0.1]
[1731367413145,34.61349684,223.63,223.55,0.1]
[1731367413353,34.61349684,223.63,223.54,0.1]
[1731367413551,34.61349684,223.63,223.56,0.1]
[1731367414233,34.61349684,223.65,223.58,0.1]
[1731367414736,34.61349684,223.67,223.6,0.1]
[1731367415366,34.61349684,223.67,223.52,47.8961615]
[1731367415367,0.1,223.78,223.66,34.61349684]
[1731367415531,34.61349684,223.71,223.67,0.1]
[1731367415850,34.61349684,223.69,223.59,0.1]
[1731367416057,34.61349684,223.65,223.63,0.1]
[1731367416253,0.1,223.73,223.63,0.1]
[1731367416558,34.61349684,223.68,223.63,0.1]
[1731367416763,27.11349684,223.66,223.62,0.1]
[1731367417135,34.61349684,223.65,223.58,0.1]
[1731367417336,0.1,223.82,223.63,34.71349684]
[1731367417535,0.1,223.82,223.56,6.3431]
[1731367417536,0.1,223.82,223.68,0.1]
[1731367417737,34.61349684,223.75,223.68,0.1]
[1731367417948,34.61349684,223.75,223.66,0.1]
[1731367418158,34.61349684,223.71,223.6,0.1]
[1731367418365,0.1,223.75,223.62,0.1]
[1731367418553,15.5964,223.85,223.59,34.61349684]
[1731367418554,34.61349684,223.69,223.63,0.1]
[1731367418741,34.61349684,223.67,223.61,0.1]
[1731367419363,0.1,223.7,223.61,0.1]
[1731367419364,34.61349684,223.65,223.61,0.1]
[1731367422663,34.61349684,223.63,223.59,0.1]
[1731367422866,34.61349684,223.74,223.61,0.1]
[1731367422867,34.61349684,223.67,223.61,0.1]
[1731367423159,34.61349684,223.71,223.66,0.1]
[1731367423362,34.61349684,223.73,223.68,0.1]
[1731367423756,34.61349684,223.71,223.65,0.1]
[1731367424661,34.61349684,223.73,223.67,0.1]
[1731367425069,34.61349684,223.75,223.7,0.1]
[1731367425242,34.61349684,223.75,223.68,0.1]
[1731367425442,34.61349684,223.73,223.68,0.1]
[1731367425658,34.61349684,223.71,223.62,34.71349684]
[1731367425861,34.61349684,223.71,223.65,0.1]
[1731367426180,34.61349684,223.71,223.63,0.1]
[1731367426460,34.61349684,223.71,223.62,34.61349684]
[1731367426461,34.61349684,223.71,223.65,0.1]
[1731367426663,34.61349684,223.71,223.68,0.1]
[1731367426839,50.20989684,223.85,223.68,0.1]
[1731367426840,34.61349684,223.73,223.68,0.1]
[1731367427040,34.61349684,223.73,223.69,0.1]
[1731367428676,34.61349684,223.73,223.71,0.1]
[1731367428843,34.61349684,223.73,223.66,0.1]
[1731367429164,34.61349684,223.71,223.66,0.1]
[1731367429359,34.61349684,223.71,223.68,0.1]
[1731367429666,0.1,223.82,223.72,0.1]
[1731367429866,15.5964,223.85,223.66,6.99676066]
[1731367429867,34.61349684,223.73,223.66,6.99676066]
[1731367430168,34.61349684,223.71,223.66,0.1]
[1731367430371,34.61349684,223.73,223.69,0.1]
[1731367430663,34.61349684,223.71,223.66,0.1]
[1731367431051,34.61349684,223.73,223.66,0.1]
[1731367431254,34.61349684,223.73,223.68,0.1]
[1731367431739,34.61349684,223.71,223.64,0.1]
[1731367432071,34.61349684,223.65,223.61,0.1]
[1731367432366,34.61349684,223.67,223.61,0.1]
[1731367432542,34.61349684,223.69,223.61,0.1]
[1731367432748,0.1,223.8,223.65,0.1]
[1731367432947,34.61349684,223.69,223.61,0.1]
[1731367433153,34.61349684,223.69,223.63,0.1]
[1731367433359,34.61349684,223.69,223.61,0.1]
[1731367433746,34.61349684,223.69,223.62,0.1]
[1731367434171,34.61349684,223.67,223.6,0.1]
[1731367434861,34.61349684,223.69,223.64,0.1]
[1731367435071,34.61349684,223.71,223.66,20.0]
[1731367435569,34.61349684,223.67,223.66,20.0]
[1731367436573,0.1,223.62,223.47,0.1]
[1731367436865,34.61349684,223.57,223.49,0.1]
[1731367437056,0.1,223.64,223.49,0.1]
[1731367437259,0.1,223.64,223.48,34.61349684]
[1731367437260,34.61349684,223.61,223.54,34.61349684]
[1731367437468,34.61349684,223.63,223.54,34.61349684]
[1731367437654,34.61349684,223.61,223.54,34.61349684]
[1731367438064,34.61349684,223.63,223.54,34.61349684]
[1731367438270,0.1,223.72,223.59,0.1]
[1731367438445,34.61349684,223.71,223.62,34.61349684]
[1731367438654,34.61349684,223.71,223.62,34.71349684]
[1731367439150,6.1605,223.81,223.66,34.61349684]
[1731367439348,34.61349684,223.75,223.66,34.61349684]
[1731367439547,34.61349684,223.74,223.64,34.61349684]
[1731367439768,34.61349684,223.7,223.62,34.61349684]
[1731367440148,34.61349684,223.7,223.61,0.1]
[1731367440149,34.61349684,223.68,223.6,34.61349684]
[1731367440352,34.61349684,223.7,223.62,34.61349684]
[1731367440548,0.1,223.79,223.66,34.61349684]
[1731367440777,34.61349684,223.74,223.66,34.61349684]
[1731367441069,6.1605,223.81,223.66,34.61349684]
[1731367441070,0.1,223.78,223.66,34.61349684]
[1731367441252,34.61349684,223.75,223.66,34.61349684]
[1731367441567,34.61349684,223.73,223.64,34.61349684]
[1731367441753,34.61349684,223.73,223.64,34.71349684]
[1731367441958,34.61349684,223.73,223.64,34.61349684]
[1731367442363,34.61349684,223.73,223.64,34.71349684]
[1731367442675,34.61349684,223.75,223.66,34.61349684]
[1731367443369,34.61349684,223.75,223.66,34.71349684]
[1731367443572,34.61349684,223.79,223.7,34.61349684]
[1731367443780,34.61349684,223.81,223.74,34.61349684]
[1731367443963,34.71349684,223.83,223.74,34.61349684]
[1731367444291,34.61349684,223.79,223.7,34.71349684]
[1731367444475,34.61349684,223.85,223.7,34.71349684]
[1731367444476,34.61349684,223.77,223.7,0.1]
[1731367444674,34.61349684,223.79,223.7,34.71349684]
[1731367444853,34.61349684,223.79,223.72,34.71349684]
[1731367445054,34.61349684,223.81,223.72,34.61349684]
[1731367445960,34.71349684,223.81,223.72,34.61349684]
[1731367446267,5.0,223.87,223.78,34.61349684]
[1731367446464,5.0,223.87,223.86,34.61349684]
[1731367446665,5.0,223.87,223.86,40.06437033]
[1731367447267,5.0,223.87,223.86,53.60039276]
[1731367447659,2.4078,223.87,223.86,53.60039276]
[1731367447855,0.1,223.98,223.95,0.1]
[1731367448085,0.1,223.98,223.91,0.1]
[1731367448375,34.61349684,223.99,223.97,0.1]
[1731367448773,34.61349684,223.99,223.94,0.1]
[1731367448976,0.1,223.98,223.94,0.1]
[1731367449273,34.61349684,223.97,223.94,0.1]
[1731367449472,34.61349684,223.95,223.91,0.1]
[1731367450282,34.61349684,223.93,223.91,0.1]
[1731367450488,7.858102,224.0,223.91,0.1]
[1731367450489,34.61349684,223.95,223.91,0.1]
[1731367451054,34.61349684,223.93,223.91,0.1]
[1731367451658,34.61349684,223.93,223.84,0.1]
[1731367451863,34.61349684,223.86,223.84,0.1]
[1731367452160,34.61349684,223.86,223.82,0.1]
[1731367452386,34.61349684,223.84,223.82,0.1]
[1731367453064,34.61349684,223.84,223.8,0.1]
[1731367453261,34.61349684,223.82,223.8,0.1]
[1731367453563,34.61349684,223.82,223.78,0.1]
[1731367453762,34.61349684,223.8,223.78,0.1]
[1731367453965,34.61349684,223.8,223.76,0.1]
[1731367454577,34.61349684,223.85,223.79,0.1]
[1731367454758,34.61349684,223.85,223.8,6.02516181]
[1731367454960,34.61349684,223.83,223.82,0.1]
[1731367455165,29.61349684,223.83,223.82,0.1]
[1731367455470,34.61349684,223.85,223.84,0.1]
[1731367456762,34.61349684,223.85,223.79,0.1]
[1731367456980,34.61349684,223.81,223.79,0.1]
[1731367457282,34.61349684,223.85,223.82,0.1]
[1731367458168,34.61349684,223.83,223.8,4.55256738]
[1731367458371,34.61349684,223.81,223.8,0.1]
[1731367458777,11.42774,224.02,223.9,0.1]
[1731367458778,0.1,223.98,223.9,0.1]
[1731367458980,34.61349684,223.92,223.9,0.1]
[1731367459304,34.61349684,223.92,223.88,0.1]
[1731367459483,34.61349684,223.9,223.88,0.1]
[1731367459686,0.1,223.96,223.88,0.1]
[1731367459868,0.26784,224.02,223.88,0.1]
[1731367459869,34.61349684,223.95,223.88,0.1]
[1731367460190,34.61349684,223.93,223.88,0.1]
[1731367460361,34.61349684,223.93,223.91,0.1]
[1731367461288,34.61349684,223.97,223.93,0.1]
[1731367461984,34.61349684,223.97,223.95,0.1]
[1731367462279,34.61349684,223.97,223.93,0.1]
[1731367462484,34.61349684,223.96,223.95,0.1]
[1731367464179,69.22699368,223.96,223.9,0.1]
[1731367464364,34.61349684,223.96,223.92,0.1]
[1731367464565,0.1,223.99,223.92,0.1]
[1731367464880,34.61349684,223.93,223.92,0.1]
[1731367465992,0.26784,224.02,223.94,0.1]
[1731367466166,34.61349684,223.96,223.9,0.1]
[1731367466370,0.1,223.99,223.92,0.1]
[1731367466684,34.61349684,223.93,223.92,0.1]
[1731367467066,34.61349684,223.93,223.9,0.1]
[1731367467262,34.61349684,223.91,223.9,0.1]
[1731367467986,34.61349684,223.91,223.84,17.54613555]
[1731367467987,34.61349684,223.91,223.87,0.1]
[1731367468172,34.61349684,223.88,223.87,0.1]
[1731367468483,34.61349684,223.9,223.88,0.1]
[1731367468684,34.61349684,223.89,223.88,0.1]
[1731367468986,34.61349684,223.89,223.87,17.93524583]
[1731367469283,34.61349684,223.89,223.87,11.43602099]
[1731367469482,34.61349684,223.89,223.86,0.1]
[1731367469680,34.61349684,223.87,223.82,5.90873848]
[1731367469880,34.61349684,223.85,223.82,5.90873848]
[1731367470079,34.61349684,223.85,223.83,0.1]
[1731367470884,34.61349684,223.85,223.83,11.86425748]
[1731367471485,34.61349684,223.85,223.8,0.1]
[1731367471664,34.61349684,223.83,223.8,5.78204123]
[1731367471864,34.61349684,223.87,223.86,0.1]
[1731367472064,34.61349684,223.89,223.88,0.1]
[1731367472368,34.61349684,223.89,223.86,12.11544637]
[1731367472681,34.61349684,223.89,223.88,0.1]
[1731367472985,34.61349684,223.89,223.86,12.01544637]
[1731367473189,34.61349684,223.87,223.85,0.1]
[1731367473388,34.61349684,223.86,223.85,0.1]
[1731367474091,34.61349684,223.88,223.87,0.1]
[1731367474390,34.61349684,223.88,223.87,6.59269123]
[1731367474784,21.05179879,223.88,223.87,6.59269123]
[1731367475575,21.05179879,223.88,223.85,5.74610619]
[1731367475781,21.05179879,223.86,223.82,0.1]
[1731367476082,21.05179879,223.82,223.8,0.1]
[1731367476773,21.05179879,223.82,223.77,0.1]
[1731367476970,21.05179879,223.82,223.79,0.1]
[1731367477171,21.05179879,223.86,223.81,0.1]
[1731367477381,21.05179879,223.86,223.82,5.72077061]
[1731367477590,21.05179879,223.84,223.82,5.72077061]
[1731367477776,0.1,223.86,223.77,5.42112061]
[1731367477970,0.1,223.86,223.63,21.15179879]
[1731367477971,21.05179879,223.8,223.78,0.1]
[1731367478389,21.05179879,223.8,223.74,0.1]
[1731367478590,21.05179879,223.8,223.75,5.38472061]
[1731367478895,21.05179879,223.76,223.72,0.1]
[1731367479573,21.05179879,223.74,223.68,0.1]
[1731367479891,21.05179879,223.74,223.7,0.1]
[1731367480472,21.05179879,223.72,223.7,0.1]
[1731367480792,21.05179879,223.78,223.73,0.1]
[1731367481271,21.05179879,223.76,223.71,0.1]
[1731367481474,21.05179879,223.74,223.69,0.1]
[1731367482602,21.05179879,223.74,223.5,13.47]
[1731367482603,23.776884,223.69,223.54,0.1]
[1731367482772,21.05179879,223.62,223.58,0.1]
[1731367482971,21.05179879,223.6,223.58,0.1]
[1731367483269,21.05179879,223.6,223.56,0.1]
[1731367483877,21.05179879,223.58,223.56,0.1]
[1731367484082,21.05179879,223.58,223.53,0.1]
[1731367484281,21.05179879,223.56,223.49,0.1]
[1731367484495,21.05179879,223.56,223.51,0.1]
[1731367484873,21.05179879,223.58,223.53,0.1]
[1731367485274,21.05179879,223.6,223.55,0.1]
[1731367485691,21.05179879,223.62,223.55,21.05179879]
[1731367485893,21.05179879,223.64,223.55,21.05179879]
[1731367487200,21.05179879,223.7,223.63,21.05179879]
[1731367487399,15.3171,223.81,223.65,21.05179879]
[1731367487577,21.05179879,223.82,223.73,21.05179879]
[1731367487783,21.05179879,223.85,223.78,21.05179879]
[1731367487977,6.1466,223.93,223.78,21.05179879]
[1731367488191,21.05179879,223.84,223.76,21.05179879]
[1731367488407,0.13661452,223.99,223.76,21.05179879]
[1731367488408,0.23661452,223.99,223.77,6.32399173]
[1731367488695,6.56114,224.02,223.77,6.32399173]
[1731367488696,21.05179879,223.87,223.78,21.05179879]
[1731367488904,21.05179879,223.89,223.8,21.05179879]
[1731367489211,7.958102,224.0,223.87,21.05179879]
[1731367489378,21.05179879,223.98,223.89,21.05179879]
[1731367489577,21.05179879,223.93,223.9,7.1562084]
[1731367489791,21.05179879,223.93,223.84,21.05179879]
[1731367489976,21.05179879,223.95,223.86,21.05179879]
[1731367490178,21.05179879,223.95,223.86,26.95573005]
[1731367490495,21.05179879,223.97,223.88,21.05179879]
[1731367490878,21.05179879,223.97,223.87,5.90393126]
[1731367490879,34.17812157,223.96,223.87,34.17812157]
[1731367491200,0.13661452,223.99,223.85,34.17812157]
[1731367491501,34.17812157,223.95,223.87,34.17812157]
[1731367491882,34.17812157,223.95,223.85,34.17812157]
[1731367492483,34.17812157,223.91,223.79,5.18522971]
[1731367492789,34.17812157,223.93,223.83,34.17812157]
[1731367493102,34.17812157,223.93,223.85,34.17812157]
[1731367493482,34.17812157,223.93,223.83,34.17812157]
[1731367493799,0.1,223.98,223.83,34.17812157]
[1731367494009,34.17812157,223.93,223.85,34.17812157]
[1731367496205,34.17812157,223.89,223.81,34.17812157]
[1731367496583,34.17812157,223.91,223.83,34.17812157]
[1731367497001,34.17812157,223.93,223.83,34.17812157]
[1731367497187,34.17812157,223.93,223.85,34.17812157]
[1731367499187,34.17812157,223.95,223.85,34.17812157]
[1731367499597,7.858102,224.0,223.85,34.17812157]
[1731367499598,34.17812157,223.97,223.9,34.17812157]
[1731367500104,34.17812157,223.95,223.88,34.17812157]
[1731367500492,34.17812157,223.97,223.9,34.17812157]
[1731367500704,34.17812157,223.95,223.86,34.17812157]
[1731367501008,7.858102,224.0,223.9,34.17812157]
[1731367501187,34.17812157,223.99,223.92,34.17812157]
[1731367501997,7.858102,224.0,223.92,34.17812157]
[1731367502185,42.03622357,224.0,223.92,34.17812157]
[1731367502497,34.17812157,223.96,223.89,34.17812157]
[1731367502686,34.17812157,223.97,223.89,34.17812157]
[1731367503006,34.17812157,223.99,223.91,34.17812157]
[1731367503302,34.17812157,223.98,223.9,34.17812157]
[1731367503503,34.17812157,223.98,223.81,0.1]
[1731367503504,34.17812157,223.92,223.84,34.17812157]
[1731367503713,34.17812157,223.92,223.75,33.945612]
[1731367503714,34.17812157,223.85,223.79,34.17812157]
[1731367503912,34.17812157,223.87,223.79,34.17812157]
[1731367504215,34.27812157,223.96,223.75,16.0003]
[1731367504216,34.17812157,223.85,223.77,34.17812157]
[1731367504516,34.17812157,223.89,223.81,34.17812157]
[1731367504694,34.17812157,223.87,223.79,34.17812157]
[1731367505220,34.17812157,223.85,223.77,34.17812157]
[1731367505385,34.17812157,223.85,223.68,0.2]
[1731367505386,34.17812157,223.79,223.68,34.17812157]
[1731367505588,34.17812157,223.71,223.64,34.17812157]
[1731367505802,34.17812157,223.85,223.65,0.1]
[1731367506004,34.17812157,223.83,223.76,34.17812157]
[1731367506218,0.1,223.86,223.63,6.0133]
[1731367506508,20.5849,223.89,223.59,15.1295]
[1731367506509,0.1,223.8,223.59,15.1295]
[1731367506705,0.1,223.77,223.55,6.0133]
[1731367506907,50.536884,223.88,223.55,6.0133]
[1731367506908,0.1,223.73,223.55,6.0133]
[1731367507108,0.1,223.73,223.51,15.1295]
[1731367507306,34.17812157,223.63,223.55,34.17812157]
[1731367507614,34.17812157,223.61,223.53,34.17812157]
[1731367507792,34.17812157,223.69,223.59,34.17812157]
[1731367507992,34.17812157,223.71,223.63,34.17812157]
[1731367508190,34.17812157,223.69,223.63,34.17812157]
[1731367508391,0.1,223.76,223.52,34.27812157]
[1731367508392,34.17812157,223.67,223.59,34.17812157]
[1731367509211,34.17812157,223.63,223.55,34.17812157]
[1731367509396,34.17812157,223.57,223.5,34.17812157]
[1731367509601,34.17812157,223.61,223.52,34.17812157]
[1731367509794,34.17812157,223.57,223.48,34.17812157]
[1731367509999,34.17812157,223.57,223.47,6.0133]
[1731367510295,0.1,223.53,223.34,0.1]
[1731367510506,34.17812157,223.39,223.23,0.1]
[1731367510695,34.17812157,223.39,223.31,34.17812157]
[1731367510891,0.1,223.5,223.21,6.2789]
[1731367510892,34.17812157,223.5,223.37,34.17812157]
[1731367511097,6.6395,223.55,223.33,0.1]
[1731367511300,34.17812157,223.45,223.37,34.17812157]
[1731367511512,34.17812157,223.43,223.35,34.17812157]
[1731367511695,34.17812157,223.41,223.33,34.17812157]
[1731367511896,34.17812157,223.39,223.31,34.17812157]
[1731367512494,34.17812157,223.37,223.29,34.17812157]
[1731367512914,0.1,223.43,223.22,0.1]
[1731367512915,34.17812157,223.35,223.26,34.17812157]
[1731367513214,34.17812157,223.33,223.26,34.17812157]
[1731367513418,34.17812157,223.33,223.24,34.17812157]
[1731367513593,34.17812157,223.31,223.24,34.17812157]
[1731367513798,34.27812157,223.41,223.24,34.17812157]
[1731367513799,34.17812157,223.33,223.24,34.17812157]
[1731367513992,4.5746,223.49,223.29,34.17812157]
[1731367513993,0.1,223.46,223.29,34.17812157]
[1731367514192,34.17812157,223.32,223.25,34.17812157]
[1731367514496,34.17812157,223.32,223.23,34.17812157]
[1731367515098,34.17812157,223.3,223.21,34.17812157]
[1731367515495,34.17812157,223.3,223.09,6.3789]
[1731367515496,34.17812157,223.24,223.12,0.1]
[1731367515696,34.17812157,223.2,223.06,15.0682]
[1731367515933,34.17812157,223.27,223.19,34.17812157]
[1731367516149,34.17812157,223.27,223.05,4.99848953]
[1731367516150,34.17812157,223.21,223.04,0.1]
[1731367516412,15.7154,223.34,223.13,0.1]
[1731367516621,0.1,223.33,223.11,0.1]
[1731367517002,0.1,223.33,223.09,0.1]
[1731367517314,0.1,223.31,223.09,0.1]
[1731367517524,34.17812157,223.24,223.16,34.17812157]
[1731367517723,34.17812157,223.28,223.2,34.17812157]
[1731367518014,34.17812157,223.3,223.22,34.17812157]
[1731367518209,34.17812157,223.28,223.2,34.17812157]
[1731367518518,34.17812157,223.21,223.06,0.1]
[1731367518721,34.17812157,223.19,223.1,34.17812157]
[1731367519018,34.17812157,223.19,223.05,6.2789]
[1731367519019,34.17812157,223.21,223.12,34.17812157]
[1731367519200,6.6395,223.36,223.19,34.17812157]
[1731367519404,34.17812157,223.26,223.17,34.17812157]
[1731367519612,34.17812157,223.28,223.19,34.17812157]
[1731367520121,34.17812157,223.2,223.07,17.903587]
[1731367520307,34.17812157,223.12,222.97,0.1]
[1731367520617,34.17812157,223.1,223.01,34.17812157]
[1731367521709,34.17812157,223.08,223.01,34.17812157]
[1731367521914,34.17812157,223.12,223.03,34.17812157]
[1731367522505,34.17812157,223.12,223.05,34.17812157]
[1731367522712,34.17812157,223.1,223.01,34.17812157]
[1731367523017,34.17812157,223.12,223.03,34.17812157]
[1731367523211,15.6633,223.25,223.09,34.17812157]
[1731367523408,0.1,223.2,222.93,0.1]
[1731367523605,34.17812157,223.06,222.97,34.17812157]
[1731367523809,0.1,223.12,222.87,0.1]
[1731367524119,34.17812157,222.98,222.89,34.17812157]
[1731367524294,34.17812157,222.96,222.83,0.1]
[1731367524496,34.17812157,222.98,222.89,34.17812157]
[1731367524925,34.17812157,223.02,222.93,34.17812157]
[1731367525422,34.17812157,223.08,222.99,34.17812157]
[1731367525719,6.091,223.18,223.03,34.17812157]
[1731367525720,34.17812157,223.12,223.03,34.17812157]
[1731367526103,34.17812157,223.08,222.92,0.1]
[1731367526314,34.17812157,223.02,222.95,34.17812157]
[1731367526514,34.17812157,223.06,222.97,34.17812157]
[1731367526717,34.17812157,223.01,222.93,34.17812157]
[1731367526923,0.1,223.12,222.91,6.6578]
[1731367527215,0.1,223.1,222.91,6.6578]
[1731367527396,0.1,223.09,222.89,16.2604]
[1731367527599,0.1,223.05,222.83,6.3621]
[1731367527819,0.1,223.05,222.83,6.4621]
[1731367528004,34.17812157,223.0,222.91,34.17812157]
[1731367528502,34.17812157,222.98,222.91,34.17812157]
[1731367528699,34.17812157,222.96,222.87,34.17812157]
[1731367528911,34.17812157,222.93,222.85,34.17812157]
[1731367529127,34.17812157,222.95,222.8,16.5951]
[1731367529424,34.17812157,222.95,222.87,34.17812157]
[1731367529814,34.17812157,222.91,222.8,16.5951]
[1731367530117,34.17812157,222.93,222.85,34.17812157]
[1731367531116,34.17812157,222.91,222.83,34.17812157]
[1731367531417,34.17812157,222.97,222.89,34.17812157]
[1731367532496,34.17812157,222.99,222.91,34.17812157]
[1731367533015,34.17812157,223.01,222.93,34.17812157]
[1731367533209,34.17812157,223.06,222.97,34.17812157]
[1731367533413,34.17812157,223.04,222.97,34.17812157]
[1731367533622,34.17812157,223.1,223.01,34.17812157]
[1731367533813,34.17812157,223.12,223.03,34.17812157]
[1731367534116,34.17812157,223.1,223.01,34.17812157]
[1731367534350,0.1,223.15,222.95,34.17812157]
[1731367534351,34.17812157,223.02,222.95,34.17812157]
[1731367534896,34.17812157,223.04,222.97,34.17812157]
[1731367535623,34.17812157,223.04,222.95,34.17812157]